Cogmind - Beta 14 @@@ ROGUE MODE // 2024.08.29 @ 03:25:56 Player: Brimble Result: Destroyed by Z-Imprinter with Zionite Laser-M Performance ------------- Evolutions (1) 500 Regions Visited (6) 1200 Robots Destroyed (39) 195 Value Destroyed (663) 663 Prototype IDs (5) 100 Alien Tech Used (0) 0 Bonus (666) 666 TOTAL SCORE: 3324 Bonus ------- Follower Combat Kills 66 Met Imprinter 300 Was Imprinted 300 Cogmind --------- Core Integrity 0/400 Matter 295/300 Energy 100/100 System Corruption 0% Temperature Cool (9) Movement Core (500) Ox9 Location -7/Deep Caves Parts ------- > --- POWER (2) -------- (None) > --- PROPULSION (3) --- (None) > --- UTILITY (2) ------ Bomb Factory No. 2 > --- WEAPON (2) ------- (None) > --- INVENTORY (5) ---- Mobile Refinery Mk. CCLXVII Spread Laser Field Laser Peak State ------------ > --- POWER ------------ Light Fission Core > --- PROPULSION ------- (None) > --- UTILITY ---------- Signal Interpreter Mobile Refinery Mk. CCLXVII > --- WEAPON ----------- Spread Laser Makeshift Hammer > --- INVENTORY -------- Improved Medium Armor Plating Bomb Factory No. 2 Field Laser Grenade Launcher [Rating: 20] Favorites ----------- Power Light Fission Core Engine Light Ion Engine Power Core Light Fission Core Propulsion Aluminum Leg Leg Aluminum Leg Wheel Wheel Utility Signal Interpreter Device Improved Terrain Scanner Storage High-capacity Storage Unit Processor Signal Interpreter Protection Improved Medium Armor Plating Weapon Makeshift Hammer Energy Gun Spread Laser Energy Cannon Beam Cannon Ballistic Gun Assault Rifle Launcher Grenade Launcher Impact Weapon Makeshift Hammer Special Melee Weapon Datajack Build | -11 -10 -10 -9 -9 -7 -7 ------- Run | Yrd Mat Min Mat Min Zio Dee Slots Evolved 2 | . . . 2 . . . Power 1 | . . . 1 . . . Propulsion 1 | . . . 1 . . . Utility . | . . . . . . . Weapon . | . . . . . . . Parts Attached 53 | 7 19 12 7 . 5 3 Power 5 | 1 1 1 1 . 1 . Engine 4 | 1 1 1 1 . . . Core 1 | . . . . . 1 . Reactor . | . . . . . . . Propulsion 13 | 2 5 4 2 . . . Treads . | . . . . . . . Leg 7 | 2 3 2 . . . . Wheel 6 | . 2 2 2 . . . Hover . | . . . . . . . Flight . | . . . . . . . Utility 16 | 2 6 2 2 . 2 2 Device 10 | 2 4 1 1 . 1 1 Storage 1 | . 1 . . . . . Processor 2 | . 1 . 1 . . . Hackware . | . . . . . . . Protection 3 | . . 1 . . 1 1 Artifact . | . . . . . . . Weapon 19 | 2 7 5 2 . 2 1 Energy Gun 3 | 1 . . . . 2 . Energy Cannon 4 | . 3 . 1 . . . Ballistic Gun 4 | 1 1 2 . . . . Ballistic Cannon . | . . . . . . . Launcher 4 | . 2 . 1 . . 1 Special Weapon . | . . . . . . . Impact Weapon 3 | . . 3 . . . . Slashing Weapon . | . . . . . . . Piercing Weapon . | . . . . . . . Special Melee Weapon 1 | . 1 . . . . . Unidentified Prototypes 2 | . . . . . 1 1 Parts Lost 14 | . 1 . 9 . . 4 Power 3 | . . . 2 . . 1 Propulsion 4 | . . . 4 . . . Utility 3 | . . . 2 . . 1 Weapon 4 | . 1 . 1 . . 2 Highest Loss Streak 4 | . 1 . 4 . . 4 To Critical Strikes 1 | . . . 1 . . . Average Slot Usage (%) 70 | . 98 100 66 33 46 54 Engine 6 | . 14 14 11 . . . Core 5 | . . . . . 9 10 Leg 11 | . 27 27 10 . . . Device 9 | . 24 12 2 . 3 . Processor 10 | . 3 14 11 22 12 10 Protection 1 | . . 1 5 . . 10 Energy Gun 6 | . 4 . . . 10 10 Energy Cannon 4 | . 7 14 8 . . . Ballistic Gun 5 | . 14 10 . . . . Impact Weapon 7 | . . 3 11 11 11 11 Peak Build Rating 20 | 9 9 13 12 7 20 18 Average Rating 12 | 4 8 10 10 7 14 17 On Entrance 8 | . 9 8 11 7 7 20 Naked Turns . | . . . . . . . Heaviest Build 33 | 9 13 12 17 3 20 33 Greatest Support 20 | 20 20 20 20 3 3 3 Greatest Overweight (x) 10 | . . . . . 6 10 Average Overweight (x) 1 | . . . . . 3 6 Largest Inventory Capacity 20 | 5 20 5 5 5 5 5 Average Capacity 5 | 5 5 5 5 5 5 5 Most Carried 5 | 5 5 5 4 2 5 5 Average Carried 4 | 2 4 4 2 2 4 4 Final Capacity 5 | 5 5 5 5 5 5 5 Final Carried 5 | 5 5 5 2 2 5 3 Class Distribution -------------------- 80% | Mutant 19% | Scavenger-Mutant Dominant Class ---------------- Mutant | -10/Materials Scavenger-Mutant | -10/Mines Mutant | -9/Materials Mutant | -9/Mines Mutant | -7/Zion Mutant | -7/Deep Caves Resources | -11 -10 -10 -9 -9 -7 -7 ----------- Run | Yrd Mat Min Mat Min Zio Dee Matter Collected 920 | 296 199 300 55 . 60 10 Remotely . | . . . . . . . Salvage Created 873 | 100 355 120 278 . . 20 Parts 55 | 13 29 7 6 . . . Haulers Intercepted 2 | . 2 . . . . . Recyclers Shooed 1 | . . . 1 . . . Parts Field Recycled . | . . . . . . . Retrieved Matter . | . . . . . . . Parts Self-Destructed . | . . . . . . . Prevented . | . . . . . . . Kills | -11 -10 -10 -9 -9 -7 -7 ------- Run | Yrd Mat Min Mat Min Zio Dee Combat Hostiles Destroyed 30 | 1 11 5 11 . . 2 Melee 7 | . . 1 5 . . 1 Guns 9 | 1 6 2 . . . . Cannons 1 | . . 1 . . . . AOE 5 | . 5 . . . . . Classes Destroyed 9 | 3 4 . 1 . . 1 Worker 2 | 1 . 1 . . . . Builder 2 | . 1 1 . . . . Tunneler 4 | 3 . 1 . . . . Hauler 2 | . 2 . . . . . Watcher 1 | . 1 . . . . . Swarmer 17 | . 6 5 6 . . . Grunt 8 | 1 5 . 2 . . . Sentry 3 | . . . 3 . . . Assembled 2 | . . . . . . 2 Best Kill Streak 6 | 4 6 3 6 . . 2 Combat Bots Only 8 | 1 5 3 8 . . 2 Max Kills in Single Turn 3 | 1 3 1 1 . . 1 Gunslinging 1 | . 1 . . . . . Exploded 2 | . 2 . . . . . Melee 1 | . . 1 1 . . 1 Uniques/NPCs Destroyed . | . . . . . . . Combat | -11 -10 -10 -9 -9 -7 -7 -------- Run | Yrd Mat Min Mat Min Zio Dee Hostile Shots Fired 210 | 4 58 35 84 . . 29 Missed 57 | 1 17 11 22 . . 6 Damage Taken 2006 | 32 387 202 606 . . 779 Core 568 | . 115 53 89 . . 311 Absorbed by Shields . | . . . . . . . Regen/Repaired (Parts) 69 | . 69 . . . . . Core Remaining (%) 66 | 100 . 32 . . . . Volleys Fired 57 | 12 38 7 . . . . Largest 2 | 2 2 2 . . . . Hottest 80 | 70 80 80 . . . . Shots Fired 110 | 24 72 14 . . . . Gun 86 | 24 55 7 . . . . Cannon 20 | . 13 7 . . . . Launcher 4 | . 4 . . . . . Special . | . . . . . . . Kinetic 59 | 12 40 7 . . . . Thermal 47 | 12 28 7 . . . . Explosive 4 | . 4 . . . . . Electromagnetic . | . . . . . . . Robot Hit Streak 10 | 4 10 2 . . . . Robot Miss Streak 5 | 4 4 5 . . . . Penetration Max . | . . . . . . . Secondary Targets 1 | . 1 . . . . . Max Gunslinging Chain 1 | . 1 . . . . . Shots Hit Robots 89 | 14 36 11 26 . . 2 Core Hits 33 | 5 22 3 2 . . 1 Critical Kills . | . . . . . . . Critical Parts Destroyed 4 | . . 3 1 . . . Critical Strikes 5 | . 1 3 1 . . . Burn 1 | . 1 . . . . . Smash 4 | . . 3 1 . . . Melee Attacks 64 | . 2 10 49 . . 3 Impact 62 | . . 10 49 . . 3 Slashing . | . . . . . . . Piercing . | . . . . . . . Sneak Attacks 4 | . . 3 1 . . . Combat Hostiles . | . . . . . . . Follow-up Attacks . | . . . . . . . Damage Inflicted 2627 | 177 755 455 1147 . . 93 Guns 557 | 177 353 27 . . . . Cannons 87 | . 34 53 . . . . Explosions 361 | . 361 . . . . . Melee 1611 | . . 371 1147 . . 93 Ramming 11 | . 7 4 . . . . Kinetic 367 | 88 252 27 . . . . Thermal 277 | 89 135 53 . . . . Explosive 361 | . 361 . . . . . Electromagnetic . | . . . . . . . Impact 1611 | . . 371 1147 . . 93 Slashing . | . . . . . . . Piercing . | . . . . . . . Highest Corruption 2 | . 2 2 . . . . Average Corruption 1 | . 1 2 . . . . Corruption Purged . | . . . . . . . Corruption Blocked . | . . . . . . . Effects 24 | . 11 13 . . . . Message Errors 6 | . 2 4 . . . . Matter Fused 7 | . 4 3 . . . . Heat Flow Errors 1 | . . 1 . . . . Energy Discharges 4 | . 1 3 . . . . Data Loss (minor) 2 | . 1 1 . . . . Misfires 3 | . 2 1 . . . . Alerts 1 | . 1 . . . . . Overload Shots . | . . . . . . . Overflow Damage 583 | . . 253 319 . . 11 Projectiles 19 | . . . 19 . . . Explosions . | . . . . . . . Melee 564 | . . 253 300 . . 11 Knockbacks 7 | . . 3 4 . . . Impact 6 | . . 3 3 . . . Kinetic . | . . . . . . . Secondary 1 | . . . 1 . . . Self-Inflicted Damage . | . . . . . . . Shots . | . . . . . . . Rammed . | . . . . . . . Targets Rammed 7 | . 4 3 . . . . Kicked 7 | . 4 3 . . . . Crushed . | . . . . . . . Highest Temperature 261 | 72 63 261 . . . 8 Average Temperature 35 | 30 18 82 . . . 8 Received Heat Transfer 468 | 18 126 . 117 . . 207 Siege Activations . | . . . . . . . Robots Corrupted 11 | . . 4 6 . . 1 Combat Hostiles 8 | . . 1 6 . . 1 Parts Fried 17 | . . 8 9 . . . Impact Corruptions 25 | . . 9 15 . . 1 Robots Melted . | . . . . . . . Combat Hostiles . | . . . . . . . Parts Melted . | . . . . . . . Heat Transferred 814 | 259 444 111 . . . . Parts Sabotaged . | . . . . . . . Parts Stolen . | . . . . . . . Parts Stripped . | . . . . . . . Power Chain Reactions . | . . . . . . . Alert | -11 -10 -10 -9 -9 -7 -7 ------- Run | Yrd Mat Min Mat Min Zio Dee Peak Influence 281 | 40 203 170 281 109 . . Initial 109 | . 26 25 11 109 . . Average 85 | 15 81 74 159 109 . . Maximum Alert Level 1 | . 1 . 1 . . . Low Security (%) 91 | 100 97 100 47 100 . . Level 1 8 | . 2 . 52 . . . Level 2 . | . . . . . . . Level 3 . | . . . . . . . Level 4 . | . . . . . . . Level 5 . | . . . . . . . High Security . | . . . . . . . Max Security . | . . . . . . . Squads Dispatched 3 | . 2 . 1 . . . Investigation 2 | . 1 . 1 . . . Extermination . | . . . . . . . Reinforcement 1 | . 1 . . . . . Assault . | . . . . . . . Garrison . | . . . . . . . Intercept . | . . . . . . . Searches Triggered . | . . . . . . . Construction Impeded . | . . . . . . . Haulers Reinforced . | . . . . . . . Active Scanning Responses . | . . . . . . . Cargo Convoy Interrupts . | . . . . . . . Stealth | -11 -10 -10 -9 -9 -7 -7 --------- Run | Yrd Mat Min Mat Min Zio Dee Distress Signals 4 | . 2 . 2 . . . Communications Jammed . | . . . . . . . Distress Signals . | . . . . . . . Times Spotted 59 | 1 25 8 16 . . 9 Peak Tracking Total 7 | 1 7 3 7 . . 5 Tactical Retreats 6 | . 3 . 3 . . . Traps | -11 -10 -10 -9 -9 -7 -7 ------- Run | Yrd Mat Min Mat Min Zio Dee Traps Triggered 1 | . . . 1 . . . Indirectly . | . . . . . . . Trap Hack Attempts . | . . . . . . . Triggered . | . . . . . . . Disarmed . | . . . . . . . Reprogrammed . | . . . . . . . Reused . | . . . . . . . Traps Extracted . | . . . . . . . Installed . | . . . . . . . Triggered . | . . . . . . . Machines | -11 -10 -10 -9 -9 -7 -7 ---------- Run | Yrd Mat Min Mat Min Zio Dee Machines Disabled 1 | . . . . . . 1 Max in Single Turn . | . . . . . . . Machines Repaired . | . . . . . . . Machines Dismantled . | . . . . . . . Machines Sabotaged . | . . . . . . . Overloaded Fab Kills . | . . . . . . . Hacking | -11 -10 -10 -9 -9 -7 -7 --------- Run | Yrd Mat Min Mat Min Zio Dee Machines Accessed 8 | . 8 . . . . . Terminals 5 | . 5 . . . . . Fabricators . | . . . . . . . Repair Stations 1 | . 1 . . . . . Recycling Units 2 | . 2 . . . . . Scanalyzers . | . . . . . . . Garrison Access . | . . . . . . . Total Hacks 26 | . 26 . . . . . Successful 19 | . 19 . . . . . Failed 7 | . 7 . . . . . Catastrophic 1 | . 1 . . . . . Database Lockouts . | . . . . . . . Manual 19 | . . . . . 19 . Terminals 15 | . 15 . . . . . Fabricators . | . . . . . . . Repair Stations 3 | . 3 . . . . . Recycling Units 8 | . 8 . . . . . Scanalyzers . | . . . . . . . Garrison Access . | . . . . . . . Terminal Hacks 9 | . 9 . . . . . Record 1 | . 1 . . . . . Robot Analysis 1 | . 1 . . . . . Prototype ID Bank 2 | . 2 . . . . . Branch Access Points 1 | . 1 . . . . . Alert Level 2 | . 2 . . . . . Locate Traps 1 | . 1 . . . . . Zone Layout 1 | . 1 . . . . . Fabricator Hacks . | . . . . . . . Repair Station Hacks 3 | . 3 . . . . . Scan Component 2 | . 2 . . . . . Repair 1 | . 1 . . . . . Recycling Unit Hacks 7 | . 7 . . . . . Recycle Component 1 | . 1 . . . . . Process 2 | . 2 . . . . . Report Inventory 3 | . 3 . . . . . Retrieve Matter 1 | . 1 . . . . . Scanalyzer . | . . . . . . . Garrison Access Hacks . | . . . . . . . Unauthorized Hacks . | . . . . . . . Terminals . | . . . . . . . Fabricators . | . . . . . . . Repair Stations . | . . . . . . . Recycling Units . | . . . . . . . Scanalyzers . | . . . . . . . Garrison Access . | . . . . . . . Data Cores Recovered . | . . . . . . . Used . | . . . . . . . Hacking Detections 8 | . 8 . . . . . Full Trace Events 4 | . 4 . . . . . Feedback Events 2 | . 2 . . . . . Corruption 2 | . 2 . . . . . Feedback Blocked . | . . . . . . . Robot Schematics Acquired . | . . . . . . . Robots Built . | . . . . . . . Authchips . | . . . . . . . Time . | . . . . . . . Total Robot Build Rating . | . . . . . . . Part Schematics Acquired . | . . . . . . . Parts Built . | . . . . . . . Authchips . | . . . . . . . Time . | . . . . . . . Total Part Build Rating . | . . . . . . . Parts Repaired 1 | . 1 . . . . . Time 26 | . 26 . . . . . Parts Recycled 1 | . 1 . . . . . Recycled Matter 30 | . 30 . . . . . Retrieved Matter 30 | . 30 . . . . . Retrieved Components . | . . . . . . . Parts Scanalyzed . | . . . . . . . Part Schematics Acquired . | . . . . . . . Parts Damaged . | . . . . . . . Bothacking | -11 -10 -10 -9 -9 -7 -7 ------------ Run | Yrd Mat Min Mat Min Zio Dee Used RIF Installer . | . . . . . . . Robots Hacked 1 | . 1 . . . . . Non-combat . | . . . . . . . Combat 1 | . 1 . . . . . Robot Hacks Applied 1 | . 1 . . . . . parse_system 1 | . 1 . . . . . Relay Couplers Released . | . . . . . . . Fabnet Peak Effective % . | . . . . . . . Robots Rewired . | . . . . . . . Allies Hacked . | . . . . . . . Hacks Repelled . | . . . . . . . Allies | -11 -10 -10 -9 -9 -7 -7 -------- Run | Yrd Mat Min Mat Min Zio Dee Total Allies 10 | . . 4 . . 6 . Largest Group 6 | . . 4 2 . 6 2 Highest-Rated Group 341 | . . 71 32 . 341 192 Highest-Rated Ally 96 | . . 31 16 . 96 96 Total Orders . | . . . . . . . Ally Attacks 44 | . . 8 10 . . 26 Total Damage 890 | . . 115 123 . . 652 Kills 7 | . . 2 . . . 5 Allies Corrupted . | . . . . . . . Allies Melted . | . . . . . . . Intel | -11 -10 -10 -9 -9 -7 -7 ------- Run | Yrd Mat Min Mat Min Zio Dee Robot Analysis Total 1 | . 1 . . . . . Derelict Logs Recovered 3 | . . 1 . . 2 . Drone Launches . | . . . . . . . Drone Recoveries . | . . . . . . . Exploration | -11 -10 -10 -9 -9 -7 -7 ------------- Run | Yrd Mat Min Mat Min Zio Dee Turns Passed 4453 | 137 997 764 290 4 1778 483 Spaces Moved 2455 | 78 667 550 181 7 839 133 Core 1051 | 19 . . 53 7 839 133 Treads . | . . . . . . . Legs 1294 | 59 653 535 47 . . . Wheels 110 | . 14 15 81 . . . Hover . | . . . . . . . Flight . | . . . . . . . Fastest Speed 50 | 50 80 80 50 50 50 250 Average Speed 157 | 102 119 118 81 50 203 351 Slowest Speed 550 | 120 120 120 120 50 350 550 Overloaded Moves . | . . . . . . . Propulsion Burnouts . | . . . . . . . Robots Hopped . | . . . . . . . Cave-ins Triggered . | . . . . . . . Exploration Rate (%) 44 | 6 88 84 17 10 85 24 Regions Visited 6 Branch Regions 4 Pre-discovered Areas 2 | . . 1 . . 1 . Known Exits Taken 4 | . 1 . 1 1 1 . Unknown Exits Taken 2 | 1 . 1 . . . . Scrap Searched 1 | . . . . . 1 . Spaces Dug . | . . . . . . . Terrain Destroyed 26 | . 26 . . . . . Melee . | . . . . . . . Projectile . | . . . . . . . AOE 26 | . 26 . . . . . Terrain Rammed . | . . . . . . . Walls Destroyed . | . . . . . . . Machines Disabled . | . . . . . . . Actions | -11 -10 -10 -9 -9 -7 -7 --------- Run | Yrd Mat Min Mat Min Zio Dee Total 2886 | 110 806 632 274 6 911 147 Wait 173 | 2 34 43 30 . 57 7 Move 2449 | 77 666 549 180 6 838 133 Hop . | . . . . . . . Pick Up 49 | 12 21 4 5 . 7 . Fast Attach . | . . . . . . . Attach 31 | 7 14 . 5 . 4 1 Detach 6 | . 4 . . . 2 . Swap 22 | . 5 12 2 . 1 2 Drop 28 | . 18 4 3 . 2 1 Fire 57 | 12 38 7 . . . . Melee 64 | . 2 10 49 . . 3 Ram . | . . . . . . . Kick 7 | . 4 3 . . . . Crush . | . . . . . . . Escape Stasis . | . . . . . . . Rewire . | . . . . . . . Trap . | . . . . . . . Miscellaneous . | . . . . . . . Route ------- -11/Scrapyard -10/Materials (discovered 4 exits: *Mat x3 / *Min) -10/Mines (discovered 2 exits: *Mat x2) -9/Materials -9/Mines -7/Zion -7/Deep Caves History --------- Turn | Location | Event 2 | -11/Scrapyard | Met Revision 17 71 | -11/Scrapyard | Discovered new exit (range 8) 138 | -11/Scrapyard | Entered Materials 300 | -10/Materials | Build established: Mutant 348 | -10/Materials | Discovered new exit (range 12) 546 | -10/Materials | Discovered new exit (range 13) 737 | -10/Materials | Repaired Aluminum Leg 1014 | -10/Materials | Identified exit to Mines 1069 | -10/Materials | Discovered new exit (range 18) 1135 | -10/Materials | Entered Mines 1138 | -10/Mines | Core integrity fell below 50% 1276 | -10/Mines | A weapon hastily lodged in a ceiling crevice suddenly fell to the ground 1423 | -10/Mines | Discovered new exit (range 7) 1470 | -10/Mines | Build established: Scavenger-Mutant 1610 | -10/Mines | Assisted by bots powering up and referring to "LRC-V3" 1621 | -10/Mines | Discovered new exit (range 6) 1694 | -10/Mines | Received a Mining Laser from a helpful Derelict 1763 | -10/Mines | Learned location of Mines (-9) 1899 | -10/Mines | Entered Materials 1899 | -9/Materials | Accompanied by 2 allies 1899 | -9/Materials | Evolved 2 slots: Power x1, Propulsion x1 2074 | -9/Materials | Destroyed 8 combat bots 2077 | -9/Materials | Lost 4 parts (3n1u) 2168 | -9/Materials | Discovered new exit (range 14) 2171 | -9/Materials | Lost 4 parts (1p1n1u1w) 2181 | -9/Materials | Identified exit to Mines 2189 | -9/Materials | Entered Mines 2190 | -9/Mines | A Derelict revealed a hidden shortcut to a safe place 2192 | -9/Mines | Identified exit to Zion 2193 | -9/Mines | Entered Zion 2247 | -7/Zion | Acquired unknown access codes intercepted by a Zionite 2330 | -7/Zion | Build established: Mutant 2397 | -7/Zion | Learned location of Warlord (-4) 2481 | -7/Zion | Given A8's code to call for help 2558 | -7/Zion | Learned 12 Factory zone layouts 2611 | -7/Zion | Found Prototype Device 2735 | -7/Zion | Learned Factory emergency access door positions 3045 | -7/Zion | Met Imprinter 3102 | -7/Zion | Imprinted 3105 | -7/Zion | Declared Zion's savior 3468 | -7/Zion | Found Prototype Device 3469 | -7/Zion | Identified Mobile Refinery Mk. CCLXVII 3711 | -7/Zion | Enhanced Grunt warped into view, answering call for help 3714 | -7/Zion | Enhanced Grunt warped into view, answering call for help 3765 | -7/Zion | Opened final containment barrier to the Deep Caves 3813 | -7/Zion | Discovered new exit (range 5) 3819 | -7/Zion | Saw the warning signs outside the Deep Caves entrance 3825 | -7/Zion | Identified exit to Deep Caves 3971 | -7/Zion | Entered Deep Caves 3971 | -7/Deep Caves | Accompanied by 6 allies 4411 | -7/Deep Caves | Z-Facility disabled 4430 | -7/Deep Caves | Attacked by Z-Imprinter 4446 | -7/Deep Caves | Identified Bomb Factory No. 2 4447 | -7/Deep Caves | Core integrity fell below 50% 4452 | -7/Deep Caves | Core integrity fell below 20% 4454 | -7/Deep Caves | Destroyed by Z-Imprinter with Zionite Laser-M Last Messages --------------- 04411_ Z-Facility disabled. 04414_ NEW_ZION: Z-Facility proximity alert. 04415_ KQ-B25(o) destroyed. 04425_ Enhanced Grunt destroyed. Z-Imprinter: GET AWAY FROM HERE! I've worked too hard for our future just to have you ruin everything! 04441_ Lgt. Fission Core destroyed. 04441_ Enhanced Grunt destroyed. 04445_ Grenade Launcher destroyed. 04445_ Imp. Medium Armor Plating destroyed. 04445_ Discarded Signal Interpreter. 04446_ Identified Bomb Factory No. 2. 04451_ Mak. Hammer destroyed. [Achievement: First Step to Greatness] Important note for Steam players: Cogmind player global achievement rates displayed by Steam are all significantly underreported, in some cases by a huge margin, due to how they are calculated by Valve. Map ----- +----------------------------------------------------+ | ????????????????????????? | | ????????????????????????? | | ???????????????????????? #### | | ???????????????????????? ###??## | | ???????????????????????? ##?????# | | ???????????????????????? #??????# # | | ???????????????????????? ##?????# # | | ???????????????????????? #?????# | | ???????????????????????? #?????### | | ???????????????????????? #???????? | | ?????????????????????? ##???????? | | ??????????????????? ##???????? | | ????????????????? #???????? | | ??????????????? #???????? | | ???????????????? ##???????# | | ????????????????" z z ##????????# | | ????????????????"" I ##????????# | | ???????????????""" ##???????# | | ??????????????"""" #???????? | | ?????????????"""" #???????? | | ???????????? """ ##???????? | | ????????????? #????????? | | ?????????????""" % ##???????? | | ??????????""""" #???????? | | ????????? ##??????? | | ????????? @ #??????? | | ???????? % ##?????? | | ???????? ]%! #?????? | | ???????? = #?????? | | ???????? #?????? | | ???????? ##;## #?????? | | ????????? ###?##?#;; #### #?????? | | ????????? ????????########??## ##?????? | | ?????????? ###????????????????????## ###??????? | | ??????????#??????????????????????????####????????? | | ?????????????????????????????????????????????????? | | | | | | | | | | | | | | | | | | | | | | | | | | | | | +----------------------------------------------------+ Best States ------------- Heat Dissipation 28 Energy Generation 18 Energy Capacity 275 Matter Stores 300 Matter Capacity 300 Sight Range 18 Terrain Scan Range 16 Terrain Scan Density 10 ECM Strength 1 Armor Coverage 225 Evasion (%) 55 Item Schematics ----------------- None Robot Schematics ------------------ None Fabricated ------------ Nothing Alien Tech Used ----------------- None Achievements -------------- Adventurer Crack Shot First Step to Greatness Help From High Places One Hack Too Far Power Corrupts Risk Taker Robot Respite Signs Are For Wimps The More The Merrier The One Tourist Uninvited Guest Challenges ------------ None Game ------ Seed ProjectionScrapLog Manual? 0 Play Time 02:04:19 Cumulative 2.0 hours Start 2024.08.28 @ 23:59:00 End 2024.08.29 @ 03:25:56 Sessions 1 Manual Loads 0 Difficulty Rogue Special Mode None Game No. 2 Rogue 2 Adventurer 0 Explorer 0 Win Type - Total 0 Types 0/0/0/0/0/0/0/0/0 Lore% 2 Gallery% 3 Achievement% 6 Wizard Run 0 Options --------- Layout 1 ASCII 0 Keyboard 0 Movement Numpad Keybinds 0 Fullscreen 1 Font 24/Smallcaps Map View 50x40 Zoom Use 0% Tactical HUD 1 Map Filters NONE Filters NONE Steam 1 RUN: b5906ed2-f514-4fd4-b55a-6968b7129efa